fUSD/lending_fUSD_20240906
["ID","MTS","AMOUNT","RATE_DAILY","PERIOD"]
[337424286,1725663032191,-31622.27063508,0.0001289,2]
[337424287,1725663032200,-5000.0,0.00012898,2]
[337424288,1725663032209,-14611.1565,0.00012899,2]
[337424289,1725663032218,-1568.48732453,0.00012899,2]
[337424290,1725663032227,-176.70507134,0.000129,2]
[337424291,1725663032236,-40000.0,0.000129,2]
[337424292,1725663032246,-891.912,0.000129,2]
[337424293,1725663032255,-157.40526554,0.000129,2]
[337424294,1725663032264,-171.25223681,0.000129,2]
[337424295,1725663032273,-962.05078736,0.000129,2]
[337424296,1725663032282,-327.38518787,0.000129,2]
[337424297,1725663032290,-388.92563463,0.00012973,2]
[337424298,1725663032299,-500.0,0.00012973,2]
[337424299,1725663032308,-151.48,0.0001299,2]
[337424301,1725663032317,-171.08649104,0.0001299,2]
[337424303,1725663032326,-10225.8596252,0.00012996,2]
[337424304,1725663032335,-18784.661,0.00012996,2]
[337424305,1725663032343,-499.99,0.00012996,2]
[337424306,1725663032352,-211.10373381,0.00012999,2]
[337424307,1725663032361,-269745.5487733,0.00013,2]
[337424308,1725663032372,-7657.14046937,0.00013,2]
[337424309,1725663032383,-883.54995,0.00013,2]
[337424310,1725663032393,-846.47,0.00013,2]
[337424311,1725663032405,-350.2299999,0.00013,2]
[337424313,1725663032576,-2553.19999998,0.00013,2]
[337424314,1725663032587,-12387.04239639,0.00013,2]
[337424315,1725663032599,-2221.45568052,0.00013,2]
[337424316,1725663032610,-743.12178504,0.00013,2]
[337424317,1725663032621,-890.24351687,0.00013,2]
[337424318,1725663032632,-462.53216332,0.00013,2]
[337424319,1725663032643,-1443.6854515,0.00013,2]
[337424320,1725663032656,-534.83187124,0.00013,2]
[337424321,1725663032668,-153385.55194873,0.00013,2]
[337424322,1725663032679,-11506.71936319,0.00013,2]
[337424323,1725663032690,-2423.11071755,0.00013,2]
[337424324,1725663032701,-10730.55001468,0.00013,2]
[337424325,1725663036939,874.44,0.00011287,2]
[337424326,1725663038127,-5396.8,0.00013,2]
[337424327,1725663038233,-287.75747,0.00013,2]
[337424328,1725663038244,-27245.02591253,0.00013,2]
[337424329,1725663038256,-6903.18681663,0.00013,2]
[337424330,1725663038335,-5294.3619548,0.00013,2]
[337424340,1725663040184,-1312.9373036,0.00013,2]
[337424341,1725663040195,-635.83443385,0.00013,2]
[337424342,1725663040206,-1933.03616059,0.00013,2]
[337424343,1725663040217,-400.07483383,0.00013,2]
[337424344,1725663040228,-745.83403878,0.00013,2]
[337424345,1725663040239,-5464.19112739,0.00013,2]
[337424346,1725663040254,-445.20549256,0.00013,2]
[337424348,1725663040677,-269672.70518086,0.00013,2]
[337424352,1725663044100,-64292.50754696,0.00013,2]
[337424353,1725663044112,-123032.37562574,0.00013,2]
[337424354,1725663044124,-617.50400176,0.00013,2]
[337424364,1725663046179,-6196.68276554,0.00013,2]
[337424365,1725663046370,-5053.44211201,0.00013,2]
[337424366,1725663046397,-7695.26470235,0.00013,2]
[337424371,1725663204872,500.0,0.00025434,120]
[337424372,1725663205322,500.0,0.00026946,120]
[337424373,1725663210884,200.0,0.00023922,120]
[337424374,1725663248861,155.23,0.00013113,30]
[337424375,1725663264089,1030.0,0.00031418,30]
[337424376,1725663339242,-786.8,0.0001237,2]
[337424377,1725663339268,-250.0,0.00012483,2]
[337424378,1725663339291,-2167.2867,0.0001279,2]
[337424379,1725663339315,-183.00821368,0.000128,2]
[337424380,1725663339338,-500.0,0.00012896,2]
[337424381,1725663339362,-200.0,0.00012896,2]
[337424382,1725663339388,-300.0,0.00012898,2]
[337424383,1725663339411,-150.0,0.00012899,2]
[337424384,1725663339434,-15955.6155,0.000129,2]
[337424385,1725663339458,-7369.7552,0.000129,2]
[337424386,1725663339481,-1706.3223,0.000129,2]
[337424387,1725663339504,-176.70507133,0.000129,2]
[337424388,1725663339527,-1000.0,0.000129,2]
[337424389,1725663339549,-641.36719158,0.000129,2]
[337424390,1725663339572,-189.64,0.00012915,2]
[337424391,1725663339595,-1495.82,0.00012918,2]
[337424392,1725663339618,-170.78,0.00012918,2]
[337424393,1725663339640,-4886.0891716,0.00012996,2]
[337424394,1725663339662,-243.76045181,0.00012996,2]
[337424395,1725663398158,89.24,0.00010959,2]
[337424396,1725663398186,75.24,0.00010959,2]
[337424397,1725663530119,830.71,0.00010918,2]
[337424398,1725663585794,150.0,0.00012,2]
[337424399,1725663585820,10.0,0.00012,2]
[337424400,1725663801283,140.0,0.00011904,2]
[337424401,1725663801308,150.0,0.00011904,2]
[337424402,1725663801331,150.0,0.00011904,2]
[337424403,1725663801352,60.0,0.00011904,2]
[337424404,1725663801707,500.0,0.00025412,120]
[337424405,1725663805420,90.0,0.00011904,2]
[337424406,1725663805442,110.0,0.00011904,2]
[337424408,1725663876656,155.23,0.0001248,30]
[337424415,1725663991497,40.0,9.833e-05,2]
[337424416,1725663991519,110.0,9.833e-05,2]
[337424493,1725664195280,40.0,0.00010443,2]
[337424494,1725664195308,794.18,0.00010443,2]
[337424509,1725664232318,-250.0,0.00012273,2]
[337424510,1725664232328,-280.15,0.00012273,2]
[337424511,1725664232337,-672.0,0.00012321,2]
[337424512,1725664232347,-300.0,0.00012327,2]
[337424513,1725664232359,-250.0,0.00012328,2]
[337424514,1725664232368,-554.84,0.00012328,2]
[337424515,1725664232377,-328.0,0.00012356,2]
[337424516,1725664232387,-248.31,0.00012371,2]
[337424517,1725664232397,-834.18,0.00012707,2]
[337424518,1725664232407,-272.184,0.0001274,2]
[337424519,1725664232416,-439.45622,0.0001287,2]
[337424520,1725664232425,-184.18770664,0.000129,2]
[337424521,1725664232438,-153.66,0.00012978,2]
[337424522,1725664232449,-812.88664836,0.00012978,2]
[337424523,1725664232461,-620.38007723,0.00012978,2]
[337424524,1725664232472,-12209.65327441,0.00012978,2]
[337424525,1725664232483,-812.7653006,0.00012993,2]
[337424526,1725664232493,-2204.70442374,0.00012993,2]
[337424527,1725664232510,-794.13179765,0.00012993,2]
[337424528,1725664232521,-415.22091175,0.00012993,2]
[337424529,1725664232532,-1461.41488593,0.00012993,2]
[337424530,1725664232544,-469.02406266,0.00012993,2]
[337424531,1725664232559,-636.97482507,0.00012993,2]
[337424532,1725664232570,-291.65,0.00012993,2]
[337424533,1725664232581,-3508.99,0.00012993,2]
[337424548,1725664238426,-900.0,0.00012328,2]
[337424549,1725664238482,-4155.71983986,0.00012328,2]
[337424550,1725664238494,-6445.5,0.00012328,2]
[337424551,1725664238532,-725.65208479,0.00012328,2]
[337424571,1725664240295,-2777.57183232,0.00012328,2]
[337424572,1725664240304,-2933.04567864,0.00012993,2]
[337424573,1725664240316,-573.16626518,0.00012993,2]
[337424574,1725664240327,-611.11,0.00012993,2]
[337424575,1725664240338,-3752.18914638,0.00012993,2]
[337424576,1725664240347,-2266.2675636,0.00012993,2]
[337424577,1725664240356,-2140.8020083,0.00012993,2]
[337424578,1725664240366,-14351.1,0.00012993,2]
[337424579,1725664240375,-233.6,0.00012993,2]
[337424580,1725664240384,-211.10373381,0.00012999,2]
[337424581,1725664240394,-22587.35044511,0.00013,2]
[337424582,1725664240410,-1443.53392705,0.00013,2]
[337424583,1725664240432,-165102.10526792,0.00013,2]
[337424584,1725664240501,-574132.66442378,0.00013,2]
[337424585,1725664240514,-308644.59859788,0.00013,2]
[337424586,1725664240671,-6992.18,0.00013,2]
[337424587,1725664240694,-3280.56012288,0.00013,2]
[337424595,1725664240862,-1000.99984072,0.00013,2]
[337424609,1725664244328,-98719.55411284,0.00013,2]
[337424610,1725664244339,-975.63018824,0.00013,2]
[337424611,1725664244350,-13423.64513516,0.00013,2]
[337424612,1725664244361,-482.99999997,0.00013,2]
[337424613,1725664244403,-851.90336111,0.00013,2]
[337424614,1725664244415,-22184.97987689,0.00013,2]
[337424615,1725664244432,-4835.0,0.00013,2]
[337424616,1725664244445,-2488.55910474,0.00013,2]
[337424617,1725664244456,-9225.0,0.00013,2]
[337424631,1725664246343,-327.38518787,0.000129,2]
[337424633,1725664246353,-2695.84921213,0.00013,2]
[337424636,1725664247052,-43435.3378558,0.00013,2]
[337424638,1725664247063,-246392.12240456,0.00013,2]
[337424639,1725664247072,-472.64138801,0.00013,2]
[337424640,1725664247083,-114114.04838944,0.00013,2]
[337424641,1725664247106,-786.04464485,0.00013,2]
[337424642,1725664389541,155.23,0.00012551,30]
[337424643,1725664401246,500.0,0.0002546,120]
[337424644,1725664491855,150.0,0.00010959,2]
[337424645,1725664491876,12.06,0.00010959,2]
[337424646,1725664563651,1150.9,0.00011436,2]
[337424647,1725664585624,150.0,0.00011436,2]
[337424648,1725664585647,100.0,0.00011436,2]
[337424649,1725664598186,150.0,0.00011436,2]
[337424650,1725664601315,-900.0,0.00012036,2]
[337424651,1725664602717,-892.64797777,0.00012036,2]
[337424652,1725664617502,4568.9806,0.00031423,30]
[337424654,1725664647958,-9351.69042772,0.00012036,2]
[337424655,1725664662486,193.0,0.00031423,30]
[337424656,1725664671070,480.12,0.00011468,2]
[337424657,1725664688545,737.6,0.00011433,2]
[337424658,1725664707877,201.35,0.00011451,2]
[337424659,1725664716075,8599.31,0.00011561,2]
[337424660,1725664742622,170.78,0.00011439,2]
[337424661,1725664756418,851.03,9.534e-05,2]
[337424662,1725664756626,851.03,0.00011798,2]
[337424671,1725664785659,299.0,0.00011439,2]
[337424672,1725664785682,2715.52,0.00011439,2]
[337424673,1725664791311,750.0,0.00011439,2]
[337424674,1725664803155,150.0,0.00011798,2]
[337424675,1725664803373,150.0,0.00011798,2]
[337424676,1725664803554,150.0,0.00011798,2]
[337424677,1725664803730,150.0,0.00011798,2]
[337424678,1725664803919,150.0,0.00011798,2]
[337424679,1725664804113,150.0,0.00011798,2]
[337424680,1725664827606,2911.8,0.00011451,2]
[337424681,1725664837251,450.0,0.00011439,2]
[337424682,1725664841179,150.0,0.00011439,2]
[337424683,1725664841199,150.0,0.00011439,2]
[337424684,1725664841219,150.0,0.00011439,2]
[337424685,1725664841238,150.0,0.00011439,2]
[337424686,1725664841412,150.0,0.00011439,2]
[337424687,1725664841434,150.0,0.00011439,2]
[337424688,1725664841454,150.0,0.00011439,2]
[337424689,1725664841475,150.0,0.00011439,2]
[337424690,1725664841495,150.0,0.00011439,2]
[337424691,1725664841517,150.0,0.00011439,2]
[337424692,1725664857004,1000.0,0.00027,120]
[337424693,1725664877338,542.84,0.00011429,2]
[337424694,1725664882808,155.23,0.00011648,30]
[337424695,1725664952757,150.0,0.00011492,2]
[337424696,1725664952783,150.0,0.00011492,2]
[337424697,1725664952809,150.0,0.00011492,2]
[337424698,1725664952834,150.0,0.00011492,2]
[337424699,1725664952859,150.0,0.00011492,2]
[337424700,1725664952885,296.0,0.00011492,2]
[337424701,1725664952915,14838.62,0.00011492,2]
[337424702,1725664952943,8015.38,0.00011492,2]
[337424703,1725664952981,250.0,0.00011492,2]
[337424704,1725665003920,151.0,0.00011429,2]
[337424705,1725665004232,298.0,0.00011429,2]
[337424706,1725665004342,500.0,0.000114,2]
[337424707,1725665004776,500.0,0.00026,120]
[337424708,1725665008294,200.0,0.00027,120]
[337424709,1725665011027,250.0,0.00011445,2]
[337424710,1725665054931,261.33,0.00010959,2]
[337424711,1725665110884,2000.0,0.00011464,2]
[337424712,1725665120092,6539.67,9e-05,2]
[337424713,1725665120116,1059.83303023,9e-05,2]
[337424714,1725665121026,250.0,0.00011473,2]
[337424716,1725665153018,150.0,0.00011473,2]
[337424717,1725665154549,5899.66927416,6.94e-05,2]
[337424718,1725665179636,240.06,0.00011473,2]
[337424719,1725665188623,201.36,0.00011473,2]
[337424721,1725665224000,9277.21,0.00011488,2]
[337424722,1725665227714,409.92,0.00011501,2]
[337424723,1725665232932,150.0,0.00011688,2]
[337424731,1725665278437,204.62312072,0.0001,2]
[337424737,1725665313610,7044.46696384,0.00010998,2]
[337424744,1725665334395,1493.98,0.00011519,2]
[337424775,1725665368903,150.0,0.00011948,2]
[337424776,1725665400241,-228.06135102,0.00012039,2]
[337424777,1725665400272,-5189.45943191,0.00012046,2]
[337424778,1725665402556,150.0,0.00011519,2]
[337424779,1725665402773,150.0,0.00011519,2]
[337424780,1725665402975,150.0,0.00011519,2]
[337424781,1725665403173,150.0,0.00011519,2]
[337424782,1725665403398,150.0,0.00011519,2]
[337424783,1725665403599,150.0,0.00011519,2]
[337424784,1725665403786,296.0,0.00011519,2]
[337424872,1725665431429,-5038.7342473,0.00012046,2]
[337424873,1725665431440,-282.25122079,0.00012046,2]
[337424875,1725665431449,-180.24,0.00012136,2]
[337424876,1725665431458,-180.24,0.00012139,2]
[337424877,1725665431467,-180.24,0.00012143,2]
[337424879,1725665431476,-1677.02877921,0.00012146,2]
[337424881,1725665431487,-1221.48907909,0.00012146,2]
[337424883,1725665431498,-3641.40814063,0.00012146,2]
[337424886,1725665431509,-284.99558097,0.00012146,2]
[337424887,1725665431519,-88.14857254,0.00012146,2]
[337424889,1725665431530,-92.09142746,0.00012146,2]
[337424890,1725665431539,-180.24,0.00012149,2]
[337424891,1725665431548,-163.6,0.00012149,2]
[337424893,1725665431557,-180.24,0.00012152,2]
[337424894,1725665431566,-3101.93,0.00012152,2]
[337424895,1725665431575,-150.0,0.00012154,2]
[337424897,1725665431584,-180.24,0.00012155,2]
[337424898,1725665431593,-1250.89,0.00012155,2]
[337424899,1725665431602,-600.09,0.00012155,2]
[337424901,1725665431611,-499.99,0.00012155,2]
[337424902,1725665431620,-16409.14,0.00012155,2]
[337424903,1725665431629,-150.99,0.00012155,2]
[337424905,1725665431638,-180.24,0.00012159,2]
[337424906,1725665431647,-4471.2801276,0.00012159,2]
[337424907,1725665431658,-404.0365253,0.00012159,2]
[337424909,1725665431668,-3666.3633471,0.00012159,2]
[337424910,1725665431678,-911.85,0.00012159,2]
[337424911,1725665431688,-1136.31,0.00012159,2]
[337424912,1725665431696,-180.24,0.00012162,2]
[337424913,1725665431705,-180.24,0.00012165,2]
[337424914,1725665431714,-180.24,0.00012168,2]
[337424915,1725665431723,-180.24,0.00012171,2]
[337424916,1725665431732,-180.24,0.00012175,2]
[337424917,1725665431741,-180.24,0.00012178,2]
[337424918,1725665431749,-180.24,0.00012181,2]
[337424919,1725665431759,-180.24,0.00012184,2]
[337424920,1725665431770,-180.24,0.00012187,2]
[337424921,1725665431779,-180.24,0.00012191,2]
[337424922,1725665431788,-180.24,0.00012194,2]
[337424923,1725665431797,-180.24,0.00012197,2]
[337424924,1725665431806,-5143.851,0.00012197,2]
[337424925,1725665431816,-829.97459723,0.000123,2]
[337424926,1725665431825,-1350.0,0.00012342,2]
[337424927,1725665431834,-267.71640209,0.0001235,2]
[337424928,1725665431845,-244.0,0.000127,2]
[337424929,1725665431854,-3791.1011,0.00012796,2]
[337424930,1725665431863,-4802.2494,0.000128,2]
[337424931,1725665431872,-704.9945,0.000128,2]
[337424932,1725665431881,-213.9214,0.000128,2]
[337424933,1725665431890,-1000.0,0.000128,2]
[337424934,1725665431899,-3275.50973118,0.000128,2]
[337424935,1725665431907,-233.7602,0.000128,2]
[337424936,1725665431916,-150.0,0.000128,2]
[337424937,1725665431926,-150.0,0.000128,2]
[337424938,1725665431935,-150.0,0.000128,2]
[337424939,1725665431944,-791.93,0.000128,2]
[337424940,1725665431953,-439.07,0.000128,2]
[337424941,1725665431962,-150.0,0.000128,2]
[337424942,1725665431971,-150.0,0.000128,2]
[337424943,1725665431980,-150.0,0.000128,2]
[337424944,1725665431990,-737.6,0.00012862,2]
[337424945,1725665431999,-366.21352,0.0001287,2]
[337424946,1725665432010,-201.35,0.00012883,2]
[337424947,1725665432019,-179.99,0.00012893,2]
[337424948,1725665432028,-109274.4742,0.000129,2]
[337424949,1725665432038,-424.9518,0.000129,2]
[337424950,1725665432047,-973.1725,0.000129,2]
[337424951,1725665432056,-1000.0,0.000129,2]
[337424952,1725665432065,-791.93,0.000129,2]
[337424953,1725665432074,-791.93,0.000129,2]
[337424954,1725665432083,-791.93,0.000129,2]
[337424955,1725665432092,-791.93,0.000129,2]
[337424956,1725665432101,-155.43287471,0.000129,2]
[337424957,1725665432110,-150.0,0.000129,2]
[337424958,1725665432119,-150.0,0.000129,2]
[337424959,1725665432128,-150.0,0.000129,2]
[337424960,1725665432137,-150.0,0.000129,2]
[337424961,1725665432146,-150.0,0.000129,2]
[337424962,1725665432155,-150.0,0.000129,2]
[337424963,1725665432164,-150.0,0.000129,2]
[337424964,1725665432172,-791.93,0.000129,2]
[337424965,1725665432181,-791.93,0.000129,2]
[337424966,1725665432190,-150.0,0.000129,2]
[337424967,1725665432199,-150.0,0.000129,2]
[337424968,1725665432208,-791.93,0.000129,2]
[337424969,1725665432217,-150.0,0.000129,2]
[337424971,1725665432226,-150.0,0.000129,2]
[337424972,1725665432235,-150.0,0.000129,2]
[337424973,1725665432244,-150.0,0.000129,2]
[337424974,1725665432253,-150.0,0.000129,2]
[337424975,1725665432261,-1000.0,0.000129,2]
[337424976,1725665432275,-1200.2826,0.000129,2]
[337424977,1725665432285,-206.7960771,0.000129,2]
[337424978,1725665432294,-791.93,0.000129,2]
[337424979,1725665432302,-1130.35540628,0.000129,2]
[337424980,1725665432312,-409.92,0.00012938,2]
[337424981,1725665432321,-500.0,0.00012973,2]
[337424982,1725665432330,-500.0,0.00012973,2]
[337424983,1725665432339,-311.05310379,0.00012973,2]
[337424984,1725665432348,-602.19037199,0.00012973,2]
[337424985,1725665432357,-500.0,0.00012973,2]
[337424986,1725665432367,-150.0,0.00012986,2]
[337424987,1725665432376,-151.56,0.0001299,2]
[337424988,1725665432385,-151.56,0.0001299,2]
[337424989,1725665432394,-151.56,0.0001299,2]
[337424990,1725665432403,-151.56,0.0001299,2]
[337424991,1725665432411,-151.56,0.0001299,2]
[337424992,1725665432421,-241.20022022,0.0001299,2]
[337424993,1725665432429,-22829.17288602,0.00012993,2]
[337424994,1725665432441,-368.45868927,0.00012993,2]
[337424995,1725665432452,-2883.57498914,0.00012993,2]
[337424996,1725665432462,-6847.87621969,0.00012993,2]
[337424997,1725665432514,-325.89,0.00012993,2]
[337424998,1725665432525,-634.97948376,0.00012993,2]
[337425118,1725665437709,-8670.75897432,0.00012993,2]
[337425119,1725665437718,-5120.136804,0.00012993,2]
[337425120,1725665437728,-2853.3926295,0.00012993,2]
[337425121,1725665437737,-553.04887712,0.00012999,2]
[337425122,1725665437746,-156.90946194,0.00012999,2]
[337425123,1725665437756,-500.0,0.00012999,2]
[337425124,1725665437766,-401.36953619,0.00012999,2]
[337425125,1725665437780,-500.0,0.00012999,2]
[337425126,1725665437789,-500.0,0.00012999,2]
[337425127,1725665437800,-137711.74612013,0.00013,2]
[337425128,1725665437815,-509.3973985,0.00013,2]
[337425129,1725665437835,-514.10062394,0.00013,2]
[337425130,1725665437849,-3693.05223629,0.00013,2]
[337425131,1725665437908,-1264.25000003,0.00013,2]
[337425132,1725665437922,-591.34299335,0.00013,2]
[337425150,1725665439727,-10759.574708,0.00013,2]
[337425151,1725665439739,-336.54424521,0.00013,2]
[337425152,1725665439751,-808.585,0.00013,2]
[337425153,1725665439762,-541.72755415,0.00013,2]
[337425154,1725665439935,-257.884,0.00013,2]
[337425160,1725665440365,-9249.47441591,0.00013,2]
[337425161,1725665440378,-626.0,0.00013,2]
[337425171,1725665443288,-35470.79969155,0.00013,2]
[337425185,1725665445537,-1079.14,0.000128,2]
[337425228,1725665446099,-341.2,0.000128,2]
[337425230,1725665446112,-500.0,0.00012973,2]
[337425232,1725665446122,-368.69925141,0.00012999,2]
[337425234,1725665446131,-282670.19572945,0.00013,2]
[337425236,1725665446141,-256451.75975976,0.00013,2]
[337425238,1725665446152,-27035.30666,0.00013,2]
[337425268,1725665482885,155.23,0.00012889,30]
[337425269,1725665542156,810.87,0.00010258,2]
[337425271,1725665692599,1978.18299447,0.00011936,2]
[337425272,1725665708449,2336.1,0.00011934,2]
[337425273,1725665735491,754.04,0.00011934,2]
[337425274,1725665738737,750.0,0.00011,2]
[337425275,1725665781752,152.29,0.00011925,2]
[337425276,1725665781791,152.29,0.00011985,2]
[337425278,1725665805091,1156.08,0.0001196,2]
[337425279,1725665828128,279.19,0.00011955,2]
[337425280,1725665861610,197.11,0.00011941,2]
[337425281,1725665881290,500.0,0.00031412,30]
[337425282,1725665898037,500.0,0.00031412,30]
[337425283,1725665906315,500.0,0.00031412,30]
[337425284,1725665910952,219.80793522,0.00011936,2]
[337425285,1725665917172,500.0,0.00031412,30]
[337425286,1725665929767,500.0,0.00031412,30]
[337425287,1725665937561,500.0,0.00031412,30]
[337425288,1725665945055,500.0,0.00031412,30]
[337425289,1725665960698,316.0,0.00031412,30]
[337425290,1725665973786,500.0,0.00031412,30]
[337425291,1725665996873,155.23,0.00012181,30]
[337425292,1725666032612,868.9595,0.0001196,2]
[337425293,1725666047710,250.0,0.00011855,2]
[337425294,1725666056777,770.32,9.983e-05,2]
[337425295,1725666076074,1500.0,0.00011904,2]
[337425296,1725666095373,664.45,0.00011996,2]
[337425297,1725666136262,250.0,0.00011821,2]
[337425298,1725666137414,16337.242,0.00011821,2]
[337425299,1725666137437,7562.758,0.00011821,2]
[337425301,1725666196622,5145.54,0.00031412,30]
[337425302,1725666204151,150.0,0.00011918,2]
[337425303,1725666231301,246.65,0.00011986,2]
[337425304,1725666323568,250.0,0.00011994,2]
[337425305,1725666373672,176.64,0.00011938,2]
[337425306,1725666388370,500.0,0.00031418,30]
[337425307,1725666442971,293.234247,0.00031418,120]
[337425308,1725666508681,-1154.0,0.00012035,2]
[337425309,1725666508714,-8629.90464378,0.00012045,2]
[337425310,1725666508836,-5270.01805032,0.00012045,2]
[337425311,1725666508865,-396.76,0.00012047,2]
[337425312,1725666508893,-4117.12659346,0.00012054,2]
[337425313,1725666508948,-2326.13267913,0.00012054,2]
[337425314,1725666508978,-150.0,0.00012054,2]
[337425315,1725666509006,-1502.03076793,0.00012055,2]
[337425316,1725666509386,155.23,0.00012172,30]
[337425317,1725666533727,-10254.82409847,0.00012055,2]
[337425318,1725666533779,-10254.82409847,0.00012055,2]
[337425319,1725666533828,-5283.83249298,0.00012055,2]
[337425362,1725666631526,-161.07,0.00012127,2]
[337425363,1725666631536,-150.0,0.00012137,2]
[337425364,1725666631545,-161.07,0.00012149,2]
[337425366,1725666631555,-161.07,0.00012149,2]
[337425367,1725666631564,-161.07,0.00012149,2]
[337425369,1725666631573,-17210.56,0.00012159,2]
[337425370,1725666631583,-1500.0,0.00012159,2]
[337425371,1725666631592,-161.07,0.00012172,2]
[337425373,1725666631601,-217.747,0.00012174,2]
[337425374,1725666631611,-1126.84766022,0.00012174,2]
[337425375,1725666631620,-999.99,0.00012174,2]
[337425377,1725666631629,-150.99,0.00012174,2]
[337425378,1725666631639,-150.99,0.00012174,2]
[337425379,1725666631648,-299.99,0.00012175,2]
[337425381,1725666631658,-5747.34,0.00012182,2]
[337425382,1725666631667,-770.32,0.00012247,2]
[337425383,1725666631677,-1361.63,0.00012247,2]
[337425385,1725666631687,-499.99,0.00012247,2]
[337425386,1725666631697,-1563.5613,0.000128,2]
[337425388,1725666631706,-1000.0,0.000128,2]
[337425389,1725666631715,-150.0,0.000128,2]
[337425390,1725666631724,-791.93,0.000128,2]
[337425392,1725666631733,-150.0,0.000128,2]
[337425393,1725666631743,-150.0,0.000128,2]
[337425394,1725666631752,-150.0,0.000128,2]
[337425396,1725666631762,-791.93,0.000128,2]
[337425397,1725666631771,-3028.0524,0.000128,2]
[337425398,1725666631781,-225.1494,0.000128,2]
[337425400,1725666631791,-150.0,0.000128,2]
[337425401,1725666631800,-150.0,0.000128,2]
[337425402,1725666631809,-150.0,0.000128,2]
[337425404,1725666631818,-150.0,0.000128,2]
[337425405,1725666631827,-150.0,0.000128,2]
[337425406,1725666631836,-150.0,0.000128,2]
[337425408,1725666631846,-791.93,0.000128,2]
[337425409,1725666631856,-150.0,0.000128,2]
[337425411,1725666631865,-1256.85,0.000128,2]
[337425412,1725666631875,-150.0,0.000128,2]
[337425413,1725666631885,-150.0,0.000128,2]
[337425415,1725666631894,-150.0,0.000128,2]
[337425416,1725666631903,-150.0,0.000128,2]
[337425417,1725666631913,-150.0,0.000128,2]
[337425419,1725666631922,-791.75,0.000128,2]
[337425420,1725666631932,-150.0,0.000128,2]
[337425421,1725666631942,-150.0,0.000128,2]
[337425423,1725666631951,-791.93,0.000128,2]
[337425424,1725666631960,-1583.5,0.000128,2]
[337425425,1725666631970,-150.0,0.000128,2]
[337425427,1725666631979,-150.0,0.000128,2]
[337425428,1725666631988,-150.0,0.000128,2]
[337425429,1725666631998,-150.0,0.000128,2]
[337425431,1725666632008,-150.0,0.000128,2]
[337425432,1725666632018,-150.0,0.000128,2]
[337425433,1725666632027,-791.93,0.000128,2]
[337425435,1725666632037,-357.41,0.000128,2]
[337425436,1725666632046,-150.0,0.000128,2]
[337425437,1725666632056,-150.0,0.000128,2]
[337425439,1725666632065,-150.0,0.000128,2]
[337425440,1725666632075,-150.0,0.000128,2]
[337425441,1725666632084,-150.0,0.000128,2]
[337425443,1725666632094,-150.0,0.000128,2]
[337425444,1725666632103,-357.41,0.000128,2]
[337425445,1725666632112,-791.93,0.000128,2]